fUSD/lending_fUSD_20250930
["ID","MTS","AMOUNT","RATE_DAILY","PERIOD"]
[388569664,1759243887999,-500.0,0.00019452,2]
[388569665,1759243888008,-4439.11,0.00019452,2]
[388569666,1759243888020,-500.0,0.00019452,2]
[388569667,1759243888029,-151.0,0.00019452,2]
[388569668,1759243888041,-500.0,0.00019452,2]
[388569669,1759243888053,-4340.48,0.00019452,2]
[388569670,1759243888062,-500.0,0.00019452,2]
[388569671,1759243888072,-151.0,0.00019452,2]
[388569672,1759243888083,-500.0,0.00019452,2]
[388569673,1759243888093,-2483.46,0.00019452,2]
[388569674,1759243888103,-509.44,0.00019452,2]
[388569675,1759243888113,-151.0,0.00019452,2]
[388569676,1759243888124,-500.0,0.00019452,2]
[388569677,1759243888134,-500.0,0.00019452,2]
[388569678,1759243888143,-500.0,0.00019452,2]
[388569679,1759243888152,-4248.48,0.00019452,2]
[388569680,1759243888161,-500.0,0.00019452,2]
[388569681,1759243888170,-151.0,0.00019452,2]
[388569682,1759243888180,-500.0,0.00019452,2]
[388569683,1759243888189,-805.4,0.00019452,2]
[388569684,1759243888198,-947.63,0.00019452,2]
[388569685,1759243888207,-3309.16,0.00019452,2]
[388569686,1759243888216,-4252.51,0.00019452,2]
[388569687,1759243888225,-500.0,0.00019452,2]
[388569688,1759243888234,-151.0,0.00019452,2]
[388569689,1759243888243,-500.0,0.00019452,2]
[388569690,1759243888252,-500.0,0.00019452,2]
[388569691,1759243888261,-500.0,0.00019452,2]
[388569692,1759243888272,-708.23,0.00019452,2]
[388569693,1759243888281,-3946.61,0.00019452,2]
[388569694,1759243888290,-151.0,0.00019452,2]
[388569695,1759243888299,-937.61,0.00019452,2]
[388569696,1759243888309,-500.0,0.00019452,2]
[388569697,1759243888318,-4104.25,0.00019452,2]
[388569698,1759243888327,-500.0,0.00019452,2]
[388569699,1759243888337,-6330.81,0.00019452,2]
[388569700,1759243888346,-1141.7,0.00019452,2]
[388569701,1759243888355,-500.0,0.00019452,2]
[388569702,1759243888364,-500.0,0.00019452,2]
[388569703,1759243888373,-2834.78,0.00019452,2]
[388569704,1759243888382,-500.0,0.00019452,2]
[388569705,1759243888392,-365.96,0.00019452,2]
[388569706,1759243888401,-500.0,0.00019452,2]
[388569707,1759243888410,-151.0,0.00019452,2]
[388569708,1759243888420,-872.72,0.00019452,2]
[388569709,1759243888429,-1941.79,0.00019452,2]
[388569710,1759243888438,-151.0,0.00019452,2]
[388569711,1759243888447,-500.0,0.00019452,2]
[388569712,1759243888457,-151.0,0.00019452,2]
[388569713,1759243888466,-1762.85,0.00019452,2]
[388569714,1759243888475,-151.0,0.00019452,2]
[388569715,1759243888484,-5950.02,0.00019452,2]
[388569716,1759243888493,-4706.84,0.00019452,2]
[388569717,1759243888503,-500.0,0.00019452,2]
[388569718,1759243888512,-4729.75,0.00019452,2]
[388569719,1759243888523,-500.0,0.00019452,2]
[388569720,1759243888532,-500.0,0.00019452,2]
[388569721,1759243888542,-500.0,0.00019452,2]
[388569722,1759243888552,-500.0,0.00019452,2]
[388569723,1759243888561,-500.0,0.00019452,2]
[388569724,1759243888571,-787.29,0.00019452,2]
[388569725,1759243888580,-3419.59,0.00019452,2]
[388569726,1759243888589,-1143.162969,0.00019452,2]
[388569727,1759243888599,-1143.162969,0.00019452,2]
[388569728,1759243888608,-500.0,0.00019452,2]
[388569729,1759243888617,-500.0,0.00019452,2]
[388569730,1759243888627,-151.0,0.00019452,2]
[388569731,1759243888636,-5002.0,0.00019452,2]
[388569732,1759243888646,-1143.162969,0.00019452,2]
[388569733,1759243888656,-1687.72,0.00019452,2]
[388569734,1759243888665,-1154.61,0.00019452,2]
[388569735,1759243888674,-500.0,0.00019452,2]
[388569736,1759243888683,-521.13,0.00019452,2]
[388569737,1759243888693,-8599.07,0.00019452,2]
[388569738,1759243888703,-151.0,0.00019452,2]
[388569739,1759243888713,-2467.33,0.00019452,2]
[388569740,1759243888723,-1143.162969,0.00019452,2]
[388569741,1759243888733,-4836.52,0.00019452,2]
[388569742,1759243888743,-2386.57,0.00019452,2]
[388569743,1759243888753,-151.0,0.00019452,2]
[388569744,1759243888762,-151.0,0.00019452,2]
[388569745,1759243888772,-673.89,0.00019452,2]
[388569746,1759243888782,-3713.1,0.00019452,2]
[388569747,1759243888792,-3515.11,0.00019452,2]
[388569748,1759243888801,-500.0,0.00019452,2]
[388569749,1759243888811,-500.0,0.00019452,2]
[388569750,1759243888820,-3866.6,0.00019452,2]
[388569751,1759243888829,-1695.32,0.00019452,2]
[388569752,1759243888839,-500.0,0.00019452,2]
[388569753,1759243888849,-169.445697,0.00019452,2]
[388569754,1759243888858,-730.11,0.00019452,2]
[388569755,1759243888869,-11248.94,0.00019452,2]
[388569756,1759243888878,-4459.74,0.00019452,2]
[388569757,1759243888888,-3163.57,0.00019452,2]
[388569758,1759243888897,-500.0,0.00019452,2]
[388569759,1759243888906,-169.445697,0.00019452,2]
[388569760,1759243888916,-2792.99,0.00019452,2]
[388569761,1759243888926,-11810.4,0.00019452,2]
[388569762,1759243888935,-247.413347,0.00019452,2]
[388569763,1759243888944,-2771.3,0.00019452,2]
[388569764,1759243888954,-500.0,0.00019452,2]
[388569765,1759243888965,-169.445697,0.00019452,2]
[388569766,1759243888976,-199.85367,0.00019452,2]
[388569767,1759243888988,-247.413347,0.00019452,2]
[388569768,1759243888998,-3529.57,0.00019452,2]
[388569769,1759243889007,-500.0,0.00019452,2]
[388569770,1759243889017,-169.445697,0.00019452,2]
[388569771,1759243889026,-3118.0,0.00019452,2]
[388569772,1759243889037,-500.0,0.00019452,2]
[388569773,1759243889050,-199.85367,0.00019452,2]
[388569774,1759243889059,-500.0,0.00019452,2]
[388569775,1759243889070,-247.413347,0.00019452,2]
[388569776,1759243889080,-151.0,0.00019452,2]
[388569777,1759243889088,-500.0,0.00019452,2]
[388569778,1759243889097,-500.0,0.00019452,2]
[388569779,1759243889107,-199.85367,0.00019452,2]
[388569780,1759243889118,-151.0,0.00019452,2]
[388569781,1759243889128,-247.413347,0.00019452,2]
[388569782,1759243889137,-500.0,0.00019452,2]
[388569783,1759243889146,-151.0,0.00019452,2]
[388569784,1759243889155,-500.0,0.00019452,2]
[388569785,1759243889164,-199.85367,0.00019452,2]
[388569786,1759243889174,-151.0,0.00019452,2]
[388569787,1759243889183,-151.0,0.00019452,2]
[388569788,1759243889192,-5791.96,0.00019452,2]
[388569789,1759243889201,-151.0,0.00019452,2]
[388569790,1759243889210,-871.1,0.00019452,2]
[388569791,1759243889220,-500.0,0.00019452,2]
[388569792,1759243889229,-3604.25,0.00019452,2]
[388569793,1759243889239,-5786.2,0.00019452,2]
[388569794,1759243889248,-500.0,0.00019452,2]
[388569795,1759243889257,-178.243114,0.00019452,2]
[388569796,1759243889267,-1515.69,0.00019452,2]
[388569797,1759243889276,-500.0,0.00019452,2]
[388569798,1759243889285,-151.0,0.00019452,2]
[388569799,1759243889295,-1390.21,0.00019452,2]
[388569800,1759243889305,-599.39,0.00019452,2]
[388569801,1759243889314,-500.0,0.00019452,2]
[388569802,1759243889323,-178.243114,0.00019452,2]
[388569803,1759243889333,-704.45,0.00019452,2]
[388569804,1759243889342,-151.0,0.00019452,2]
[388569805,1759243889351,-500.0,0.00019452,2]
[388569806,1759243889361,-259.295793,0.00019452,2]
[388569807,1759243889371,-178.243114,0.00019452,2]
[388569808,1759243889381,-151.0,0.00019452,2]
[388569809,1759243889390,-6882.39,0.00019452,2]
[388569810,1759243889399,-259.295793,0.00019452,2]
[388569811,1759243889409,-178.243114,0.00019452,2]
[388569812,1759243889418,-181.805125,0.00019452,2]
[388569813,1759243889428,-259.295793,0.00019452,2]
[388569814,1759243889438,-500.0,0.00019452,2]
[388569815,1759243889447,-500.0,0.00019452,2]
[388569816,1759243889457,-1406.64,0.00019452,2]
[388569817,1759243889467,-500.0,0.00019452,2]
[388569818,1759243889476,-500.0,0.00019452,2]
[388569819,1759243889486,-500.0,0.00019452,2]
[388569820,1759243889496,-500.0,0.00019452,2]
[388569821,1759243889506,-2256.46,0.00019452,2]
[388569822,1759243889517,-259.295793,0.00019452,2]
[388569823,1759243889527,-738.87,0.00019452,2]
[388569824,1759243889538,-188.318043,0.00019452,2]
[388569825,1759243889548,-964.74,0.00019452,2]
[388569826,1759243889557,-2765.4,0.00019452,2]
[388569827,1759243889567,-500.0,0.00019452,2]
[388569828,1759243889576,-500.0,0.00019452,2]
[388569829,1759243889586,-188.318043,0.00019452,2]
[388569830,1759243889596,-899.45,0.00019452,2]
[388569831,1759243889606,-1235.06,0.00019452,2]
[388569832,1759243889616,-836.63,0.00019452,2]
[388569833,1759243889626,-500.0,0.00019452,2]
[388569834,1759243889636,-151.0,0.00019452,2]
[388569835,1759243889645,-188.318043,0.00019452,2]
[388569836,1759243889655,-500.0,0.00019452,2]
[388569837,1759243889665,-500.0,0.00019452,2]
[388569838,1759243889674,-500.0,0.00019452,2]
[388569839,1759243889683,-188.318043,0.00019452,2]
[388569840,1759243889693,-6082.65,0.00019452,2]
[388569841,1759243889703,-500.0,0.00019452,2]
[388569842,1759243889714,-151.0,0.00019452,2]
[388569843,1759243889723,-576.16,0.00019452,2]
[388569844,1759243889733,-500.0,0.00019452,2]
[388569845,1759243889743,-1093.65,0.00019452,2]
[388569846,1759243889753,-4052.2,0.00019452,2]
[388569847,1759243889763,-966.27,0.00019452,2]
[388569848,1759243889775,-3222.59,0.00019452,2]
[388569849,1759243889784,-3187.48,0.00019452,2]
[388569850,1759243889794,-151.0,0.00019452,2]
[388569851,1759243889804,-3908.19,0.00019452,2]
[388569852,1759243889814,-2636.65,0.00019452,2]
[388569853,1759243889824,-590.54,0.00019452,2]
[388569854,1759243889833,-2826.64,0.00019452,2]
[388569855,1759243889843,-934.2,0.00019452,2]
[388569856,1759243889852,-4224.68,0.00019452,2]
[388569857,1759243889862,-3680.77,0.00019452,2]
[388569858,1759243889873,-4726.46,0.00019452,2]
[388569859,1759243889882,-500.0,0.00019452,2]
[388569860,1759243889892,-610.04,0.00019452,2]
[388569861,1759243889902,-500.0,0.00019452,2]
[388569862,1759243889912,-10430.65,0.00019452,2]
[388569863,1759243889922,-1072.81,0.00019452,2]
[388569864,1759243889932,-6111.21,0.00019452,2]
[388569865,1759243889941,-986.68,0.00019452,2]
[388569866,1759243889951,-3886.98,0.00019452,2]
[388569867,1759243889961,-727.8,0.00019452,2]
[388569868,1759243889971,-2191.69,0.00019452,2]
[388569869,1759243889981,-151.0,0.00019452,2]
[388569870,1759243889990,-500.0,0.00019452,2]
[388569871,1759243890000,-500.0,0.00019452,2]
[388569872,1759243890010,-500.0,0.00019452,2]
[388569873,1759243890021,-151.0,0.00019452,2]
[388569874,1759243890030,-1808.36,0.00019452,2]
[388569875,1759243890419,-3925.81,0.00019452,2]
[388569876,1759243890430,-4563.46,0.00019452,2]
[388569877,1759243890440,-151.0,0.00019452,2]
[388569878,1759243890450,-854.6,0.00019452,2]
[388569879,1759243890460,-151.0,0.00019452,2]
[388569880,1759243890470,-171.777196,0.00019452,2]
[388569881,1759243890480,-1954.41,0.00019452,2]
[388569882,1759243890489,-151.0,0.00019452,2]
[388569883,1759243890499,-166.099171,0.00019452,2]
[388569884,1759243890508,-151.0,0.00019452,2]
[388569885,1759243890518,-151.0,0.00019452,2]
[388569886,1759243890527,-500.0,0.00019452,2]
[388569887,1759243890536,-1491.05,0.00019452,2]
[388569888,1759243890546,-500.0,0.00019452,2]
[388569889,1759243890556,-8309.91,0.00019452,2]
[388569890,1759243890565,-151.0,0.00019452,2]
[388569891,1759243890574,-151.0,0.00019452,2]
[388569892,1759243890584,-3323.26,0.00019452,2]
[388569893,1759243890593,-166.099171,0.00019452,2]
[388569894,1759243890603,-500.0,0.00019452,2]
[388569895,1759243890613,-9367.62,0.00019452,2]
[388569896,1759243890623,-500.0,0.00019452,2]
[388569897,1759243890632,-2895.27,0.00019452,2]
[388569898,1759243890642,-500.0,0.00019452,2]
[388569899,1759243890651,-500.0,0.00019452,2]
[388569900,1759243890661,-4414.46,0.00019452,2]
[388569901,1759243890670,-1338.26,0.00019452,2]
[388569902,1759243890679,-500.0,0.00019452,2]
[388569903,1759243890688,-151.772054,0.00019452,2]
[388569904,1759243890697,-151.0,0.00019452,2]
[388569905,1759243890707,-166.099171,0.00019452,2]
[388569906,1759243890716,-151.0,0.00019452,2]
[388569907,1759243890725,-4022.76,0.00019452,2]
[388569908,1759243890734,-500.0,0.00019452,2]
[388569909,1759243890744,-166.099171,0.00019452,2]
[388569910,1759243890753,-500.0,0.00019452,2]
[388569911,1759243890762,-151.0,0.00019452,2]
[388569912,1759243890772,-1085.95,0.00019452,2]
[388569913,1759243890781,-4827.63,0.00019452,2]
[388569914,1759243890790,-3442.87,0.00019452,2]
[388569915,1759243890799,-300.0,0.00019452,2]
[388569916,1759243890808,-324.108523,0.00019452,2]
[388569917,1759243890817,-1934.59,0.00019452,2]
[388569918,1759243890828,-151.0,0.00019452,2]
[388569919,1759243890839,-4990.77,0.00019452,2]
[388569920,1759243890849,-500.0,0.00019452,2]
[388569921,1759243890860,-324.108523,0.00019452,2]
[388569922,1759243890870,-526.47,0.00019452,2]
[388569923,1759243890881,-607.84,0.00019452,2]
[388569924,1759243890890,-2655.24,0.00019452,2]
[388569925,1759243890900,-151.0,0.00019452,2]
[388569926,1759243890910,-151.0,0.00019452,2]
[388569927,1759243890920,-324.108523,0.00019452,2]
[388569928,1759243890929,-151.0,0.00019452,2]
[388569929,1759243890939,-4001.74,0.00019452,2]
[388569930,1759243890949,-1005.53,0.00019452,2]
[388569931,1759243890959,-656.59,0.00019452,2]
[388569932,1759243890968,-151.0,0.00019452,2]
[388569933,1759243890978,-2703.751123,0.00019452,2]
[388569934,1759243890987,-1382.23,0.00019452,2]
[388569935,1759243890996,-7688.96,0.00019452,2]
[388569936,1759243891006,-500.0,0.00019452,2]
[388569937,1759243891015,-324.108523,0.00019452,2]
[388569938,1759243891025,-3179.64,0.00019452,2]
[388569939,1759243891035,-151.0,0.00019452,2]
[388569940,1759243891048,-5522.62,0.00019452,2]
[388569941,1759243891060,-2703.751123,0.00019452,2]
[388569942,1759243891069,-1155.95,0.00019452,2]
[388569943,1759243891079,-4919.51,0.00019452,2]
[388569944,1759243891092,-500.0,0.00019452,2]
[388569945,1759243891102,-4271.07,0.00019452,2]
[388569946,1759243891113,-1172.72,0.00019452,2]
[388569947,1759243891124,-151.0,0.00019452,2]
[388569948,1759243891135,-2703.751123,0.00019452,2]
[388569949,1759243891144,-500.0,0.00019452,2]
[388569950,1759243891154,-1570.13,0.00019452,2]
[388569951,1759243891163,-151.0,0.00019452,2]
[388569952,1759243891173,-836.43,0.00019452,2]
[388569953,1759243891182,-151.0,0.00019452,2]
[388569954,1759243891191,-151.0,0.00019452,2]
[388569955,1759243891200,-2157.39,0.00019452,2]
[388569956,1759243891210,-863.38,0.00019452,2]
[388569957,1759243891220,-2703.751123,0.00019452,2]
[388569958,1759243891229,-2283.42,0.00019452,2]
[388569959,1759243891240,-1045.94,0.00019452,2]
[388569960,1759243891250,-155.782733,0.00019452,2]
[388569961,1759243891260,-500.0,0.00019452,2]
[388569962,1759243891271,-3082.09,0.00019452,2]
[388569963,1759243891280,-287.238648,0.00019452,2]
[388569964,1759243891290,-929.49,0.00019452,2]
[388569965,1759243891299,-151.0,0.00019452,2]
[388569966,1759243891310,-1954.99,0.00019452,2]
[388569967,1759243891322,-500.0,0.00019452,2]
[388569968,1759243891333,-372.480925,0.00019452,2]
[388569969,1759243891344,-741.60075,0.00019452,2]
[388569970,1759243891354,-1047.73,0.00019452,2]
[388569971,1759243891363,-886.09,0.00019452,2]
[388569972,1759243891373,-500.0,0.00019452,2]
[388569973,1759243891382,-500.0,0.00019452,2]
[388569974,1759243891396,-372.480925,0.00019452,2]
[388569975,1759243891405,-151.0,0.00019452,2]
[388569976,1759243891415,-741.60075,0.00019452,2]
[388569977,1759243891424,-1756.99,0.00019452,2]
[388569978,1759243891433,-500.0,0.00019452,2]
[388569979,1759243891442,-151.0,0.00019452,2]
[388569980,1759243891453,-372.480925,0.00019452,2]
[388569981,1759243891463,-500.0,0.00019452,2]
[388569982,1759243891473,-500.0,0.00019452,2]
[388569983,1759243891483,-741.60075,0.00019452,2]
[388569984,1759243891492,-4400.59,0.00019452,2]
[388569985,1759243891501,-2171.4,0.00019452,2]
[388569986,1759243891511,-202.07884,0.00019452,2]
[388569987,1759243891522,-500.0,0.00019452,2]
[388569988,1759243891531,-20780.06,0.00019452,2]
[388569989,1759243891542,-5730.05,0.00019452,2]
[388569990,1759243891555,-326.667639,0.00019452,2]
[388569991,1759243891565,-372.480925,0.00019452,2]
[388569992,1759243891574,-500.0,0.00019452,2]
[388569993,1759243891585,-741.60075,0.00019452,2]
[388569994,1759243891595,-863.31,0.00019452,2]
[388569995,1759243891604,-326.667639,0.00019452,2]
[388569996,1759243891615,-2999.63,0.00019452,2]
[388569997,1759243891625,-3304.23,0.00019452,2]
[388569998,1759243891635,-500.0,0.00019452,2]
[388569999,1759243891645,-826.29,0.00019452,2]
[388570000,1759243891655,-326.667639,0.00019452,2]
[388570001,1759243891666,-4502.44,0.00019452,2]
[388570002,1759243891675,-4834.6,0.00019452,2]
[388570003,1759243891685,-719.55,0.00019452,2]
[388570004,1759243891695,-3113.64,0.00019452,2]
[388570005,1759243891705,-676.58,0.00019452,2]
[388570006,1759243891714,-500.0,0.00019452,2]
[388570007,1759243891723,-326.667639,0.00019452,2]
[388570008,1759243891732,-151.0,0.00019452,2]
[388570009,1759243891741,-761.53,0.00019452,2]
[388570010,1759243891751,-990.39,0.00019452,2]
[388570011,1759243891760,-500.0,0.00019452,2]
[388570012,1759243891771,-3406.59,0.00019452,2]
[388570013,1759243891780,-5259.88,0.00019452,2]
[388570014,1759243891789,-500.0,0.00019452,2]
[388570015,1759243891799,-2755.02,0.00019452,2]
[388570016,1759243891808,-3532.55,0.00019452,2]
[388570017,1759243891817,-151.0,0.00019452,2]
[388570018,1759243891829,-663.14,0.00019452,2]
[388570019,1759243891843,-151.79347,0.00019452,2]
[388570020,1759243891853,-151.0,0.00019452,2]
[388570021,1759243891863,-3281.17,0.00019452,2]
[388570022,1759243891873,-151.79347,0.00019452,2]
[388570023,1759243891882,-1068.35,0.00019452,2]
[388570024,1759243891891,-5530.75,0.00019452,2]
[388570025,1759243891900,-151.0,0.00019452,2]
[388570026,1759243891910,-5464.08,0.00019452,2]
[388570027,1759243891919,-500.0,0.00019452,2]
[388570028,1759243891929,-500.0,0.00019452,2]
[388570029,1759243891938,-4398.22,0.00019452,2]
[388570030,1759243891947,-5185.96,0.00019452,2]
[388570031,1759243891957,-151.79347,0.00019452,2]
[388570032,1759243891966,-151.0,0.00019452,2]
[388570033,1759243891975,-611.6,0.00019452,2]
[388570034,1759243891984,-500.0,0.00019452,2]
[388570035,1759243891994,-151.79347,0.00019452,2]
[388570036,1759243892003,-1361.61,0.00019452,2]
[388570037,1759243892012,-589.85,0.00019452,2]
[388570038,1759243892023,-2841.53,0.00019452,2]
[388570039,1759243892032,-500.0,0.00019452,2]
[388570040,1759243892044,-4690.1,0.00019452,2]
[388570041,1759243892062,-5064.26,0.00019452,2]
[388570042,1759243892074,-8170.98,0.00019452,2]
[388570043,1759243892083,-500.0,0.00019452,2]
[388570044,1759243892093,-3481.91,0.00019452,2]
[388570045,1759243892103,-3373.16,0.00019452,2]
[388570046,1759243892113,-1340.22,0.00019452,2]
[388570047,1759243892122,-500.0,0.00019452,2]
[388570048,1759243892132,-500.0,0.00019452,2]
[388570049,1759243892142,-1860.95,0.00019452,2]
[388570050,1759243892152,-1474.11,0.00019452,2]
[388570051,1759243892161,-500.0,0.00019452,2]
[388570052,1759243892171,-1821.92,0.00019452,2]
[388570053,1759243892181,-907.31,0.00019452,2]
[388570054,1759243892191,-500.0,0.00019452,2]
[388570055,1759243892201,-654.98,0.00019452,2]
[388570056,1759243892210,-939.77,0.00019452,2]
[388570057,1759243892220,-5298.65,0.00019452,2]
[388570058,1759243892229,-18492.31,0.00019452,2]
[388570059,1759243892239,-500.0,0.00019452,2]
[388570060,1759243892248,-1268.98,0.00019452,2]
[388570061,1759243892258,-500.0,0.00019452,2]
[388570062,1759243892268,-22451.0,0.00019452,2]
[388570063,1759243892277,-500.0,0.00019452,2]
[388570064,1759243892287,-500.0,0.00019452,2]
[388570065,1759243892296,-550.71,0.00019452,2]
[388570066,1759243892306,-1117.79,0.00019452,2]
[388570067,1759243892315,-500.0,0.00019452,2]
[388570068,1759243892325,-500.0,0.00019452,2]
[388570069,1759243892335,-1186.56,0.00019452,2]
[388570070,1759243892345,-500.0,0.00019452,2]
[388570071,1759243892355,-500.0,0.00019452,2]
[388570072,1759243892364,-151.0,0.00019452,2]
[388570073,1759243892374,-6442.41,0.00019452,2]
[388570074,1759243892384,-2088.79,0.00019452,2]
[388570075,1759243892394,-2523.64,0.00019452,2]
[388570076,1759243892406,-500.0,0.00019452,2]
[388570077,1759243892415,-500.0,0.00019452,2]
[388570078,1759243892426,-249.806196,0.00019452,2]
[388570079,1759243892436,-1429.01,0.00019452,2]
[388570080,1759243892451,-249.806196,0.00019452,2]
[388570081,1759243892462,-1789.57,0.00019452,2]
[388570082,1759243892472,-500.0,0.00019452,2]
[388570083,1759243892483,-151.0,0.00019452,2]
[388570084,1759243892494,-249.806196,0.00019452,2]
[388570085,1759243892504,-3696.96,0.00019452,2]
[388570086,1759243892515,-500.0,0.00019452,2]
[388570087,1759243892525,-19762.18,0.00019452,2]
[388570088,1759243892536,-1451.45,0.00019452,2]
[388570089,1759243892546,-151.0,0.00019452,2]
[388570090,1759243892555,-2124.7,0.00019452,2]
[388570091,1759243892566,-249.806196,0.00019452,2]
[388570092,1759243892577,-500.0,0.00019452,2]
[388570093,1759243892587,-500.0,0.00019452,2]
[388570094,1759243892599,-552.85,0.00019452,2]
[388570095,1759243892609,-500.0,0.00019452,2]
[388570096,1759243892621,-151.0,0.00019452,2]
[388570097,1759243892631,-500.0,0.00019452,2]
[388570098,1759243892641,-600.59,0.00019452,2]
[388570099,1759243892656,-6781.75,0.00019452,2]
[388570100,1759243892667,-500.0,0.00019452,2]
[388570101,1759243892677,-151.0,0.00019452,2]
[388570102,1759243892688,-151.0,0.00019452,2]
[388570103,1759243892698,-151.0,0.00019452,2]
[388570104,1759243892709,-871.940278,0.00019452,2]
[388570105,1759243892719,-500.0,0.00019452,2]
[388570106,1759243892729,-151.0,0.00019452,2]
[388570107,1759243892740,-931.46,0.00019452,2]
[388570108,1759243892750,-500.0,0.00019452,2]
[388570109,1759243892760,-1404.94,0.00019452,2]
[388570110,1759243892772,-151.0,0.00019452,2]
[388570111,1759243892782,-500.0,0.00019452,2]
[388570112,1759243892792,-151.0,0.00019452,2]
[388570113,1759243892803,-151.0,0.00019452,2]
[388570114,1759243892813,-151.0,0.00019452,2]
[388570115,1759243892823,-907.95,0.00019452,2]
[388570116,1759243892833,-151.0,0.00019452,2]
[388570117,1759243893093,-906.34,0.00019452,2]
[388570118,1759243893104,-254.99021,0.00019452,2]
[388570119,1759243893113,-2939.81,0.00019452,2]
[388570120,1759243893122,-151.0,0.00019452,2]
[388570121,1759243893131,-533.1,0.00019452,2]
[388570122,1759243893141,-1341.41,0.00019452,2]
[388570123,1759243893150,-3571.8,0.00019452,2]
[388570124,1759243893159,-540.5,0.00019452,2]
[388570125,1759243893173,-848.11,0.00019452,2]
[388570126,1759243893182,-254.99021,0.00019452,2]
[388570127,1759243893191,-5681.34,0.00019452,2]
[388570128,1759243893200,-500.0,0.00019452,2]
[388570129,1759243893210,-2844.92,0.00019452,2]
[388570130,1759243893219,-500.0,0.00019452,2]
[388570131,1759243893228,-254.99021,0.00019452,2]
[388570132,1759243893237,-2084.859367,0.00019452,2]
[388570133,1759243893246,-2931.23,0.00019452,2]
[388570134,1759243893255,-151.0,0.00019452,2]
[388570135,1759243893264,-500.0,0.00019452,2]
[388570136,1759243893274,-254.99021,0.00019452,2]
[388570137,1759243893283,-3100.53,0.00019452,2]
[388570138,1759243893292,-2084.859367,0.00019452,2]
[388570139,1759243893301,-151.0,0.00019452,2]
[388570140,1759243893310,-2084.859367,0.00019452,2]
[388570141,1759243893321,-8045.861984,0.00019452,2]
[388570142,1759243893330,-500.0,0.00019452,2]
[388570143,1759243893340,-3710.9,0.00019452,2]
[388570144,1759243893349,-165.137137,0.00019452,2]
[388570145,1759243893359,-500.0,0.00019452,2]
[388570146,1759243893369,-2723.4,0.00019452,2]
[388570147,1759243893378,-871.940278,0.00019452,2]
[388570148,1759243893388,-600.129215,0.00019452,2]
[388570149,1759243893397,-500.0,0.00019452,2]
[388570150,1759243893407,-500.0,0.00019452,2]
[388570151,1759243893417,-369.687376,0.00019452,2]
[388570152,1759243893428,-8045.861984,0.00019452,2]
[388570153,1759243893437,-2084.859367,0.00019452,2]
[388570154,1759243893447,-19582.45,0.00019452,2]
[388570155,1759243893457,-871.940278,0.00019452,2]
[388570156,1759243893466,-600.129215,0.00019452,2]
[388570157,1759243893475,-730.34,0.00019452,2]
[388570158,1759243893485,-7317.79,0.00019452,2]
[388570159,1759243893494,-500.0,0.00019452,2]
[388570160,1759243893503,-369.687376,0.00019452,2]
[388570161,1759243893512,-8045.861984,0.00019452,2]
[388570162,1759243893522,-5494.11,0.00019452,2]
[388570163,1759243893532,-600.129215,0.00019452,2]